Workbook

Sheet Hoja1
A1: Código de la plaza | R1: PERTINENCIAS | T1: C.D.U.
A2: Área de conocimiento | R2: 1 | T2: SÍ
A3: Departamento | R3: =1/2 -> 0.5 | T3: NO
A4: Nombre y Apellidos | R4: =1/4 -> 0.25
B5: RESUMEN BAREMACIÓN | R5: =1/10 -> 0.1
B6: Formación Académica (35 ptos)= | C6: =+J160 -> 0 | D6: =IF(C6=INDEX(J:J,MATCH("1.00",H:H,0)),"","ERROR") ->  | R6: 0
B7: Experiencia Docente (15 ptos)= | C7: =+J252 -> 0 | D7: =IF(C7=INDEX(J:J,MATCH("2.00",H:H,0)),"","ERROR") -> 
B8: Experiencia investigadora (40 ptos)= | C8: =+J525 -> 0 | D8: =IF(C8=INDEX(J:J,MATCH("3.00",H:H,0)),"","ERROR") -> 
B9: Experiencia Profesional (5 ptos)= | C9: =+J577 -> 0 | D9: =IF(C9=INDEX(J:J,MATCH("4.00",H:H,0)),"","ERROR") -> 
B10: Otros méritos (5 ptos)= | C10: =+J630 -> 0 | D10: =IF(C10=INDEX(J:J,MATCH("5.00",H:H,0)),"","ERROR") -> 
A12: Documento | B12: Documentación de carácter general y específico
B13: Documento nacional de identidad o equivalente (anverso y reverso)
B14: Título académico universitario (anverso y reverso).
B15: Título de Doctor (anverso y reverso).
B16: Acreditación para la figura de Profesor Ayudante Doctor
B17: Currículum vitae según modelo del Anexo IV
B18: A Criterios generales
B19: Acreditación a cuerpos docentes universitarios (mérito preferente) | C19: NO
H21: BD | I21: Puntos | J21: Total
A22: I Formación académica (35 puntos)
A23: 1.1 Expediente académico
A24: Documento | B24: Mérito | C24: Cantidad | D24: Pertinencia | E24: Ptos/und | F24: Comentarios | G24: Puntos
C25: (nº)
B26: Calificación media tomada del expediente | C26: 1 | D26: 0 | E26: 1 | G26: =+C26*E26*D26 -> 0
B27: Primas por asignaturas
B28: Sobresalientes | D28: 0 | E28: 0.02 | G28: =+C28*E28*D28 -> 0
B29: Matrícula de Honor | D29: 0 | E29: 0.05 | G29: =+C29*E29*D29 -> 0
B30: Primas por Proyecto Fin de Carrera
B31: Sobresalientes | D31: 0 | E31: 0.02 | G31: =+C31*E31*D31 -> 0
B32: Matrícula de Honor | D32: 0 | E32: 0.05 | G32: =+C32*E32*D32 -> 0
B33: Incidencias
G36: Puntuación del apartado (Nota media primada x 5) | H36: 1.01 | I36: =+SUM(G24:G35)*5 -> 0
A38: 1.2 Premio extraordinario de Licenciatura
A39: Documento | B39: Mérito | C39: Cantidad | D39: Pertinencia | E39: Ptos/und | F39: Comentarios | G39: Puntos
C40: (nº)
B41: Prémio Licenciatura (5 ptos) | D41: 0 | E41: 5 | G41: =+C41*E41*D41 -> 0
B42: Incidencias
G45: Puntuación del apartado | H45: 1.02 | I45: =+SUM(G39:G44) -> 0
A47: 1.3 Tesina de Licenciatura o Grado de Licenciatura
A48: Documento | B48: Mérito | C48: Cantidad | D48: Pertinencia | E48: Ptos/und | F48: Comentarios | G48: Puntos
C49: (nº)
B50: Tesina con máxima calificación (5 ptos) | D50: 0 | E50: 5 | G50: =+C50*E50*D50 -> 0
B51: Incidencias
G54: Puntuación del apartado | H54: 1.03 | I54: =+SUM(G48:G53) -> 0
A56: 1.4 Grado de Doctor
A57: Documento | B57: Mérito | C57: Cantidad | D57: Pertinencia | E57: Ptos/und | F57: Comentarios | G57: Puntos
C58: (nº)
B59: Cum laude (10 ptos) | D59: 0 | E59: 10 | G59: =+C59*E59*D59 -> 0
B60: Sobresaliente (9 ptos) | D60: 0 | E60: 9 | G60: =+C60*E60*D60 -> 0
B61: Notable (8 ptos) | D61: 0 | E61: 8 | G61: =+C61*E61*D61 -> 0
B62: Apto o aprobado (7 ptos) | D62: 0 | E62: 7 | G62: =+C62*E62*D62 -> 0
B63: Incidencias
G66: Puntuación del apartado | H66: 1.04 | I66: =+SUM(G57:G65) -> 0
A68: 1.5 Premio extraordinario de doctorado
A69: Documento | B69: Mérito | C69: Cantidad | D69: Pertinencia | E69: Ptos/und | F69: Comentarios | G69: Puntos
C70: (nº)
B71: Prémio Doctorado (3 ptos) | D71: 0 | E71: 3 | G71: =+C71*E71*D71 -> 0
B72: Incidencias
G75: Puntuación del apartado | H75: 1.05 | I75: =+SUM(G69:G74) -> 0
A77: 1.6 Doctorado europeo
A78: Documento | B78: Mérito | C78: Cantidad | D78: Pertinencia | E78: Ptos/und | F78: Comentarios | G78: Puntos
C79: (nº)
B80: Doctorado Europeo (5 ptos) | D80: 0 | E80: 5 | G80: =+C80*E80*D80 -> 0
B81: Incidencias
G84: Puntuación del apartado | H84: 1.06 | I84: =+SUM(G78:G83) -> 0
A86: 1.7 Otras titulaciones oficiales universitarias diferentes de las requeridas en la convocatoria
A87: Documento | B87: Mérito | C87: Cantidad | D87: Pertinencia | E87: Ptos/und | F87: Comentarios | G87: Puntos
C88: (nº)
B89: Primer ciclo (2ptos)
D90: 0 | E90: 2 | G90: =+C90*E90*D90 -> 0
D91: 0 | E91: 2 | G91: =+C91*E91*D91 -> 0
B92: Segundo ciclo a partir de primer ciclo (3 ptos)
D93: 0 | E93: 3 | G93: =+C93*E93*D93 -> 0
D94: 0 | E94: 3 | G94: 0
B95: Segundo ciclo (5ptos) o segundo título de Doctor
D96: 0 | E96: 5 | G96: =+C96*E96*D96 -> 0
D97: 0 | E97: 5 | G97: 0
B98: Incidencias
G101: Puntuación del apartado | H101: 1.07 | I101: =SUM(G87:G100) -> 0
A103: 1.8 Otras titulaciones propias universitarias (Master, experto o …)
A104: Documento | B104: Mérito | C104: Cantidad | D104: Pertinencia | E104: Ptos/und | F104: Comentarios | G104: Puntos
C105: (horas)
D106: 0 | E106: =2/320 -> 0.00625 | G106: =+D106*E106*C106 -> 0
D107: 0 | E107: =2/320 -> 0.00625 | G107: =+C107*E107*D107 -> 0
B108: Incidencias
G111: Puntuación del apartado | H111: 1.08 | I111: =SUM(G104:G110) -> 0
A113: 1.9 Cursos, seminarios y talleres universitarios o impartidos por organismos de reconocido prestigio
A114: Documento | B114: Mérito | C114: Cantidad | D114: Pertinencia | E114: Ptos/und | F114: Comentarios | G114: Puntos
C115: (horas)
D116: 0 | E116: =0.02/10 -> 0.002 | G116: =+C116*E116*D116 -> 0
D117: 0 | E117: =0.02/10 -> 0.002 | G117: 0
D118: 0 | E118: 0.002 | G118: 0
D119: 0 | E119: 0.002 | G119: 0
B120: Incidencias
G123: Puntuación del apartado | H123: 1.09 | I123: =+SUM(G114:G122) -> 0
A125: 1.10 Estancias formativas en otros centros
A126: Documento | B126: Mérito | C126: Cantidad | D126: Pertinencia | E126: Ptos/und | F126: Comentarios | G126: Puntos
C127: (semanas)
B128: De pregrado (>4semanas)
D129: 0 | E129: =0.15/4 -> 0.0375 | G129: =+C129*E129*D129 -> 0
D130: 0 | E130: =0.15/4 -> 0.0375 | G130: =+C130*E130*D130 -> 0
B131: De posgrado (>4semanas)
D132: 0 | E132: =0.3/4 -> 0.075 | G132: =+C132*E132*D132 -> 0
D133: 0 | E133: =0.3/4 -> 0.075 | G133: 0
B134: Incidencias
G137: Puntuación del apartado | H137: 1.10 | I137: =+SUM(G126:G136) -> 0
A139: 1.11 Becas de pregrado competitivas
A140: Documento | B140: Mérito | C140: Cantidad | D140: Pertinencia | E140: Ptos/und | F140: Comentarios | G140: Puntos
C141: (años)
D142: 0 | E142: 0.5 | G142: =+C142*E142*D142 -> 0
D143: 0 | E143: 0.5 | G143: 0
B144: Incidencias
G147: Puntuación del apartado | H147: 1.11 | I147: =+SUM(G140:G146) -> 0
A149: 1.12 Otros méritos relevantes (máximo 1 punto)
A150: Documento | B150: Mérito | C150: Cantidad | D150: Pertinencia | E150: Ptos/und | F150: Comentarios | G150: Puntos
B151: Los puntos especificados en este apartado no son reales, los ha de especificar la Comisión Asesora | C151: (nº)
D152: 0 | E152: 1e-06 | G152: =+C152*E152*D152 -> 0
D153: 0 | E153: 1e-06 | G153: 0
D154: 0 | E154: 1e-06 | G154: 0
D155: 0 | E155: 1e-06 | G155: 0
B156: Incidencias
G159: Puntuación del apartado | H159: 1.12 | I159: =IF(SUM(G150:G158)>1,1,SUM(G150:G158)) -> 0
A160: I Formación académica (35 puntos) | H160: 1.00 | J160: =+SUM(I21:I159) -> 0
A162: II Experiencia docente y formación para la docencia (15 puntos)
A163: 2.1 Docencia universitaria en nivel de grado en materias regladas
A164: Documento | B164: Mérito | C164: Cantidad | D164: Pertinencia | E164: Ptos/und | F164: Comentarios | G164: Puntos
C165: (horas)
D166: 0 | E166: =2/240 -> 0.008333333333 | G166: =+C166*E166*D166 -> 0
D167: 0 | E167: =2/240 -> 0.008333333333 | G167: 0
D168: 0 | E168: =2/240 -> 0.008333333333 | G168: 0
D169: 0 | E169: 0.008333333333 | G169: 0
B170: Incidencias
G173: Puntuación del apartado | H173: 2.01 | I173: =+SUM(G164:G172) -> 0
A175: 2.2 Docencia universitaria de posgrado
A176: Documento | B176: Mérito | C176: Cantidad | D176: Pertinencia | E176: Ptos/und | F176: Comentarios | G176: Puntos
C177: (horas)
D178: 0 | E178: =0.1/10 -> 0.01 | G178: =+C178*E178*D178 -> 0
D179: 0 | E179: =0.1/10 -> 0.01 | G179: 0
D180: 0 | E180: 0.01 | G180: 0
D181: 0 | E181: 0.01 | G181: 0
B182: Incidencias
G185: Puntuación del apartado | H185: 2.02 | I185: =+SUM(G176:G184) -> 0
A187: 2.3 Otra docencia universitaria
A188: Documento | B188: Mérito | C188: Cantidad | D188: Pertinencia | E188: Ptos/und | F188: Comentarios | G188: Puntos
C189: (horas)
D190: 0 | E190: =0.05/10 -> 0.005 | G190: =+C190*E190*D190 -> 0
D191: 0 | E191: =0.05/10 -> 0.005 | G191: 0
D192: 0 | E192: 0.005 | G192: 0
D193: 0 | E193: 0.005 | G193: 0
B194: Incidencias
G197: Puntuación del apartado | H197: 2.03 | I197: =+SUM(G188:G196) -> 0
A199: 2.4 Material docente universitario: libros de texto, repertorios, recopilaciones, casos prácticos, etc.
A200: Documento | B200: Mérito | C200: Cantidad | D200: Pertinencia | E200: Ptos/und | F200: Comentarios | G200: Puntos
B201: Los puntos especificados en este apartado no son reales, los ha de especificar la Comisión Asesora | C201: (nº) | E201: (0 - 4)
D202: 0 | E202: 4 | G202: =+C202*E202*D202 -> 0
D203: 0 | E203: 4 | G203: 0
B204: Incidencias
G207: Puntuación del apartado | H207: 2.04 | I207: =+SUM(G200:G206) -> 0
A209: 2.5 Docencia oficial de ámbito no universitario
A210: Documento | B210: Mérito | C210: Cantidad | D210: Pertinencia | E210: Ptos/und | F210: Comentarios | G210: Puntos
C211: (cursos)
B212: Enseñanza primaria
D213: 0 | E213: 0.25 | G213: =+C213*E213*D213 -> 0
D214: 0 | E214: 0.25 | G214: =+C214*E214*D214 -> 0
B215: Enseñanza secundaria y FP
D216: 0 | E216: 0.5 | G216: =+C216*E216*D216 -> 0
D217: 0 | E217: 0.5 | G217: 0
B218: Incidencias
G221: Puntuación del apartado | H221: 2.05 | I221: =+SUM(G210:G220) -> 0
A223: 2.6 Formación didáctica para la actividad docente
A224: Documento | B224: Mérito | C224: Cantidad | D224: Pertinencia | E224: Ptos/und | F224: Comentarios | G224: Puntos
B226: Curso de adaptación pedagógica | C226: (nº)
D227: 0 | E227: 0.9 | G227: =+C227*E227*D227 -> 0
B228: Proyectos de Innovación Educativa (IP 0.5 ptos, IT 0.25 ptos, IC 0.1 ptos) | C228: (años)
D229: 0 | E229: 0.5 | G229: =+C229*E229*D229 -> 0
D230: 0 | E230: 0.25 | G230: 0
D231: 0 | E231: 0.1 | G231: 0
B232: Otros | C232: (horas)
D233: 0 | E233: 0.005 | G233: =+C233*E233*D233 -> 0
D234: 0 | E234: 0.005 | G234: 0
B235: Incidencias
G238: Puntuación del apartado | H238: 2.06 | I238: =+SUM(G224:G237) -> 0
A240: 2.7 Otros méritos relevantes (máximo 1 punto)
A241: Documento | B241: Mérito | C241: Cantidad | D241: Pertinencia | E241: Ptos/und | F241: Comentarios | G241: Puntos
B242: Los puntos especificados en este apartado no son reales, los ha de especificar la Comisión Asesora | C242: (nº)
D243: 0 | E243: 1e-06 | G243: =+C243*E243*D243 -> 0
D244: 0 | E244: 1e-06 | G244: 0
D245: 0 | E245: 1e-06 | G245: 0
D246: 0 | E246: 1e-06 | G246: 0
D247: 0 | E247: 1e-06 | G247: 0
B248: Incidencias
G251: Puntuación del apartado | H251: 2.07 | I251: =IF(SUM(G241:G250)>1,1,SUM(G241:G250)) -> 0
A252: II Experiencia docente y formación para la docencia (15 puntos) | H252: 2.00 | J252: =+SUM(I161:I251) -> 0
A254: III Experiencia investigadora (40 puntos)
A255: 3.1 Libros
A256: Documento | B256: Mérito | C256: Cantidad | D256: Pertinencia | E256: Ptos/und | F256: Comentarios | G256: Puntos
B257: Los puntos especificados en este apartado no son reales, los ha de especificar la Comisión Asesora | C257: (nº) | E257: (0.5 - 4)
B258: a) Autor (de 1 a 4 ptos)
D259: 0 | E259: 4 | G259: =+C259*E259*D259 -> 0
D260: 0 | E260: 1 | G260: =+C260*E260*D260 -> 0
... 284 more rows

Sheet Hoja2

Sheet Hoja3
